Workbook

Sheet S4G_Homework 1
C3: Name :
C6: Teacher :
B9: Intermediate 1 Official Homework 1 Created by Mr Lafferty St. Ninian's High School
D11: This homework covers topics | AC11: Score
D13: Basic Number Operations | T13: Dividing by 10, 100, 1000 | AF13: 39
D15: Rounding 10, 100, 1000 | T15: 2 step process
D17: Multiplying by 10, 100, 1000 | T17: Estimating
D20: Teacher Comments :
D28: Pupil's Comment :
B36: 1. | C36: Carry out the following instructions. | O36: ( NON - CALCULATOR QUESTION )
B38: (a) | D38: =ROUND(RAND()*(20-10)+10,0) -> 18 | F38: - | G38: =ROUND(RAND()*(6-2)+2,1) -> 2.6 | I38: + | J38: =ROUND(RAND()*(6-2)+2,2) -> 3.4 | L38: Working : | AJ38: =I40 -> 18.8
C40: Answer : | I40: =D38-G38+J38 -> 18.8
B42: (b) | D42: =ROUND(RAND()*(50-30)+30,1) -> 49.2 | G42: x | H42: =ROUND(RAND()*(9-6)+6,0) -> 9 | L42: Working : | AJ42: =I44 -> 442.8
C44: Answer : | I44: =D42*H42 -> 442.8
B46: (c) | D46: =ROUND(RAND()*(8-2)+2,1)*H46 -> 4020 | G46: ÷ | H46: =ROUND(RAND()*(9-3)+3,0)*100 -> 600 | L46: Working : | AJ46: =I48 -> 6.7
C48: Answer : | I48: =D46/H46 -> 6.7
B50: (d) | E50: =ROUND(RAND()*(8-2)+2,0) -> 3 | F50: of | H50: =E51*E50 -> 12 | L50: Working : | AJ50: =I53 -> 9
E51: =E50+1 -> 4
C53: Answer : | I53: =H50/E51*E50 -> 9 | AC53: ( 5 marks )
B56: 2. | C56: Round to the nearest gram :–
C58: (a) | E58: =ROUND(RAND()*(20-2)+2,1) -> 9.9 | H58: g | L58: (b) | N58: =ROUND(RAND()*(990-150)+150,1) -> 392.8 | Q58: g | U58: (c) | W58: =ROUND(RAND()*(99-30)+30,2) -> 68.74 | Z58: g | AJ58: =ROUND(E58,0) -> 10
H59: g | Q59: g | Z59: g | AC59: ( 3 marks ) | AJ59: =ROUND(N58,0) -> 393
AJ61: =ROUND(W58,0) -> 69
B62: 3. | C62: Round to the nearest 10 metres :–
C64: (a) | E64: =ROUND(RAND()*(50-8)+8,0) -> 19 | H64: m | L64: (b) | N64: =ROUND(RAND()*(10-2)+2,0) -> 6 | Q64: m | U64: (c) | W64: =ROUND(RAND()*(99-30)+30,0) -> 32 | Z64: m | AC64: ( 3 marks ) | AJ64: =ROUND(E64,-1) -> 20
H65: m | Q65: m | Z65: m | AJ65: =ROUND(N64,-1) -> 10
AJ67: =ROUND(W64,-1) -> 30
B68: 4. | C68: Round to the nearest 100 metres :–
C70: (a) | E70: =ROUND(RAND()*(950-118)+118,0) -> 931 | H70: m | L70: (b) | N70: =ROUND(RAND()*(9950-1118)+1118,0) -> 7624 | Q70: m | U70: (c) | W70: =ROUND(RAND()*(9950-1118)+1118,0) -> 4856 | Z70: m | AC70: ( 3 marks ) | AJ70: =ROUND(E70,-2) -> 900
H71: m | Q71: m | Z71: m | AJ71: =ROUND(N70,-2) -> 7600
AJ73: =ROUND(W70,-2) -> 4900
B74: 5. | C74: Round to the nearest 1000 metres :–
C76: (a) | E76: =ROUND(RAND()*(99950-11118)+11118,0) -> 79515 | H76: m | L76: (b) | N76: =ROUND(RAND()*(999950-111118)+111118,0) -> 145857 | Q76: m | U76: (c) | W76: =ROUND(RAND()*(99950-11118)+11118,0) -> 44698 | Z76: m | AC76: ( 3 marks ) | AJ76: =ROUND(E76,-3) -> 80000
H77: m | Q77: m | Z77: m | AJ77: =ROUND(N76,-3) -> 146000
AJ78: =ROUND(W76,-3) -> 45000
B80: 6. | C80: Write down the answers to these :–
AK81: =Z80 -> 0
C82: (a) | E82: =ROUND(RAND()*(950-18)+18,0) -> 757 | G82: x | H82: =POWER(10,ROUND(RAND()*(3-1)+1,0)) -> 10 | L82: (b) | N82: =POWER(10,ROUND(RAND()*(3-1)+1,0)) -> 100 | P82: x | Q82: =ROUND(RAND()*(950-18)+18,0) -> 553 | U82: (c) | W82: =ROUND(RAND()*(950-18)+18,0) -> 904 | Y82: x | Z82: =POWER(10,ROUND(RAND()*(3-1)+1,0)) -> 100 | AJ82: =E82*H82 -> 7570
AC83: ( 3 marks ) | AJ83: =N82*Q82 -> 55300
AJ84: =W82*Z82 -> 90400
B86: 7. | C86: Write down the answers to these :–
C88: (a) | E88: =ROUND(RAND()*(95-18)+18,0)*I88*POWER(10,ROUND(RAND()*(2-1)+1,0)) -> 650000 | H88: ÷ | I88: =POWER(10,ROUND(RAND()*(2-1)+1,0)) -> 100 | L88: (b) | N88: =ROUND(RAND()*(95-18)+18,0)*R88 -> 7500 | Q88: ÷ | R88: =POWER(10,ROUND(RAND()*(3-1)+1,0)) -> 100 | U88: (c) | W88: =ROUND(RAND()*(95-18)+18,0)*AB88*POWER(10,ROUND(RAND()*(2-1)+1,0)) -> 530000 | AA88: ÷ | AB88: =POWER(10,ROUND(RAND()*(3-1)+1,0)) -> 1000 | AJ88: =E88/I88 -> 6500
AJ89: =N88/R88 -> 75
AC90: ( 3 marks ) | AJ90: =W88/AB88 -> 530
B92: 8. | C92: Use 2 the step process to calculate
C94: (a) | E94: =ROUND(RAND()*(950-18)+18,0) -> 73 | G94: x | H94: =ROUND(RAND()*(9-2)+2,0)*10 -> 40 | U94: (b) | W94: =ROUND(RAND()*(95-18)+18,0) -> 84 | Y94: x | Z94: =ROUND(RAND()*(9-2)+2,0)*100 -> 300 | AC94: ( 4 marks )
AP96: =ROUND(RAND()*(1-0)+0,0) -> 1
D97: Working : | V97: Working : | AJ97: =E94*H94 -> 2920
AJ98: =W94*Z94 -> 25200
AL99: C | AM99: = | AN99: =IF($AP$97="+",Q98*AN97+AQ97,Q98*AN97-AQ97) -> 0
B103: 9. | C103: Use the 2 step process to calculate | AC103: ( 4 marks )
C105: (a) | E105: =ROUND(RAND()*(50-18)+18,0)*H105 -> 2350 | G105: ÷ | H105: =ROUND(RAND()*(9-2)+2,0)*10 -> 50 | U105: (b) | W105: =ROUND(RAND()*(55-7)+7,0)*AB105 -> 22000 | AA105: ÷ | AB105: =ROUND(RAND()*(9-2)+2,0)*100 -> 500 | AL105: C | AO105: =ROUND(RAND()*(30-19)+19,0) -> 20
D108: Working : | V108: Working : | AJ108: =E105/H105 -> 47
AJ109: =W105/AB105 -> 44
B114: 10. | C114: By rounding to 1 figure of accuracy find an approximate value for : | AC114: ( 8 marks )
C116: (a) | E116: =ROUND(RAND()*(989-101)+101,0) -> 878 | G116: x | H116: =ROUND(RAND()*(89-11)+11,0) -> 52 | U116: (b) | Y116: =ROUND(RAND()*(989-101)+101,0) -> 271 | AA116: x | AB116: =ROUND(RAND()*(99-11)+11,0) -> 91 | AJ116: =ROUND(E116,-2) -> 900
AJ117: =ROUND(H116,-1) -> 50
AJ118: =AJ116*AJ117 -> 45000
D119: Working : | V119: Working :
AJ120: =ROUND(Y116,-2) -> 300
AJ121: =ROUND(AB116,-1) -> 90
AJ122: =AJ120*AJ121 -> 27000 | AN122: =ROUND(SQRT((C125*C125)+(K122-I128)*(K122-I128)),1) -> 
C125: (c) | E125: =AJ125 -> 7149 | G125: ÷ | H125: =AJ126 -> 115 | U125: (d) | W125: =AJ129 -> 9083 | AA125: ÷ | AB125: =AJ130 -> 141 | AJ125: =ROUND(RAND()*(9950-1111)+1111,0) -> 7149 | AN125: =ROUND(AJ125,-3) -> 7000
AJ126: =ROUND(2*(RAND()*(90-51)+51),0) -> 115 | AN126: =ROUND(AJ126,-2) -> 100
AJ127: =ROUND(ROUND(AJ125,-3)/ROUND(AN126,-2),0) -> 70
D128: Working : | V128: Working :
AJ129: =ROUND(RAND()*(9950-1111)+1111,0) -> 9083 | AN129: =ROUND(AJ129,-3) -> 9000
AJ130: =ROUND(2*(RAND()*(90-51)+51),0) -> 141 | AN130: =ROUND(AJ130,-2) -> 100
AJ131: =ROUND(ROUND(AJ129,-3)/ROUND(AN130,-2),0) -> 90
AB134: Total marks 39
